[Event "*** Titled Tuesday Blitz"]
[Site "Chess.com"]
[Date "2018.07.03"]
[Round "4"]
[White "Godzillator"]
[Black "Irochka83"]
[Result "0-1"]
[WhiteElo "2339"]
[BlackElo "2256"]
[TimeControl "180+2"]
[EndTime "13:52:28 PDT"]
[Termination "Irochka83 won by resignation"]

1. d4 {[%clk 0:03:01.9]} 1... Nf6 {[%clk 0:03:00.1]} 2. c4 {[%clk 0:03:02.9]}
2... e6 {[%clk 0:03:01.4]} 3. Nc3 {[%clk 0:03:04]} 3... Bb4 {[%clk 0:03:01.4]}
4. Qc2 {[%clk 0:03:05.3]} 4... O-O {[%clk 0:03:00.3]} 5. a3 {[%clk 0:03:05.4]}
5... Bxc3+ {[%clk 0:03:01.3]} 6. Qxc3 {[%clk 0:03:07]} 6... d6 {[%clk
0:03:01.9]} 7. Bg5 {[%clk 0:03:07.7]} 7... Nbd7 {[%clk 0:03:02.8]} 8. e3 {[%clk
0:03:08.5]} 8... b6 {[%clk 0:03:00.5]} 9. Bd3 {[%clk 0:03:08.6]} 9... Bb7 {[%clk
0:02:57.6]} 10. f3 {[%clk 0:03:09.7]} 10... c5 {[%clk 0:02:57.1]} 11. Ne2 {[%clk
0:03:10.5]} 11... Rc8 {[%clk 0:02:52.2]} 12. Qb3 {[%clk 0:03:11.5]} 12... cxd4
{[%clk 0:02:50]} 13. exd4 {[%clk 0:03:12.5]} 13... d5 {[%clk 0:02:27.4]} 14. O-O
{[%clk 0:03:12.1]} 14... dxc4 {[%clk 0:02:22.7]} 15. Bxc4 {[%clk 0:03:13]} 15...
Qc7 {[%clk 0:02:18]} 16. Rac1 {[%clk 0:03:10.4]} 16... Qd6 {[%clk 0:02:19]} 17.
Rfd1 {[%clk 0:02:51]} 17... Bd5 {[%clk 0:02:19]} 18. Bf4 {[%clk 0:02:48]} 18...
Qe7 {[%clk 0:02:16.9]} 19. Bg5 {[%clk 0:02:32.1]} 19... h6 {[%clk 0:01:59.6]}
20. Bh4 {[%clk 0:02:31.1]} 20... Qd6 {[%clk 0:01:48.5]} 21. Bg3 {[%clk
0:02:27.7]} 21... Bxc4 {[%clk 0:01:43]} 22. Bxd6 {[%clk 0:02:01.4]} 22... Bxb3
{[%clk 0:01:41.6]} 23. Bxf8 {[%clk 0:02:02.5]} 23... Rxf8 {[%clk 0:01:33.5]} 24.
Rd3 {[%clk 0:01:53.9]} 24... Bd5 {[%clk 0:01:34.1]} 25. Nf4 {[%clk 0:01:52.5]}
25... g5 {[%clk 0:01:31.7]} 26. Ne2 {[%clk 0:01:47.7]} 26... Rd8 {[%clk
0:01:16.7]} 27. Rc7 {[%clk 0:01:46.5]} 27... a5 {[%clk 0:01:16.6]} 28. Nc3
{[%clk 0:01:41.6]} 28... Nf8 {[%clk 0:01:08.5]} 29. Kf2 {[%clk 0:01:26.3]} 29...
Ng6 {[%clk 0:01:08.5]} 30. g3 {[%clk 0:01:26]} 30... Kf8 {[%clk 0:01:02.4]} 31.
Rd2 {[%clk 0:01:11.5]} 31... g4 {[%clk 0:01:03.3]} 32. Nxd5 {[%clk 0:01:01.8]}
32... Rxd5 {[%clk 0:00:53.2]} 33. Rb7 {[%clk 0:00:57.5]} 33... b5 {[%clk
0:00:42.6]} 34. fxg4 {[%clk 0:00:52.3]} 34... Ne4+ {[%clk 0:00:42.7]} 35. Ke3
{[%clk 0:00:52.6]} 35... Nxd2 {[%clk 0:00:43.6]} 36. Kxd2 {[%clk 0:00:53.9]}
36... Rxd4+ {[%clk 0:00:44.6]} 37. Ke3 {[%clk 0:00:51.3]} 37... Rd5 {[%clk
0:00:43.7]} 38. h4 {[%clk 0:00:51.3]} 38... Ne5 {[%clk 0:00:44.2]} 39. g5 {[%clk
0:00:50]} 39... hxg5 {[%clk 0:00:44.8]} 40. h5 {[%clk 0:00:49.7]} 40... Kg7
{[%clk 0:00:44.8]} 41. Ke4 {[%clk 0:00:48.7]} 41... Kh6 {[%clk 0:00:41.1]} 42.
g4 {[%clk 0:00:47.1]} 42... Nxg4 {[%clk 0:00:30]} 43. Rxf7 {[%clk 0:00:47.7]}
43... Kxh5 {[%clk 0:00:30.2]} 44. Re7 {[%clk 0:00:46.4]} 44... Re5+ {[%clk
0:00:25.7]} 45. Kd4 {[%clk 0:00:46.7]} 45... Kg6 {[%clk 0:00:25.4]} 46. Ra7
{[%clk 0:00:43.4]} 46... a4 {[%clk 0:00:26.3]} 47. Rb7 {[%clk 0:00:43.9]} 47...
Kf6 {[%clk 0:00:26.4]} 48. Rb8 {[%clk 0:00:44.3]} 48... Rd5+ {[%clk 0:00:25.8]}
49. Ke4 {[%clk 0:00:44.4]} 49... Nf2+ {[%clk 0:00:23.3]} 50. Ke3 {[%clk
0:00:44.7]} 50... Nd3 {[%clk 0:00:22.4]} 51. Ke4 {[%clk 0:00:41.4]} 51... Nxb2
{[%clk 0:00:20.6]} 52. Rf8+ {[%clk 0:00:41.6]} 52... Ke7 {[%clk 0:00:21.5]} 53.
Rg8 {[%clk 0:00:42.2]} 53... Nc4 {[%clk 0:00:22.3]} 54. Rg7+ {[%clk 0:00:43]}
54... Kd6 {[%clk 0:00:22.8]} 55. Rg8 {[%clk 0:00:43.2]} 55... Nxa3 {[%clk
0:00:23.3]} 56. Rd8+ {[%clk 0:00:44.3]} 56... Ke7 {[%clk 0:00:24.2]} 57. Rb8
{[%clk 0:00:44.8]} 57... Nc4 {[%clk 0:00:24.1]} 58. Rb7+ {[%clk 0:00:43.9]}
58... Kf6 {[%clk 0:00:24.4]} 59. Rb8 {[%clk 0:00:44.8]} 59... a3 {[%clk
0:00:24.9]} 60. Ra8 {[%clk 0:00:45.6]} 60... b4 {[%clk 0:00:24.7]} 61. Ra4
{[%clk 0:00:46]} 61... Rb5 {[%clk 0:00:21.5]} 62. Kd4 {[%clk 0:00:46]} 62... Nd6
{[%clk 0:00:20.1]} 63. Ra6 {[%clk 0:00:45]} 63... Nf5+ {[%clk 0:00:20.6]} 64.
Kc4 {[%clk 0:00:45.6]} 64... Rb8 {[%clk 0:00:22]} 65. Kb3 {[%clk 0:00:46]} 65...
g4 {[%clk 0:00:22.2]} 66. Ra7 {[%clk 0:00:35.8]} 66... g3 {[%clk 0:00:21.5]} 67.
Rh7 {[%clk 0:00:36.7]} 67... g2 {[%clk 0:00:21.1]} 68. Rh6+ {[%clk 0:00:38.2]}
68... Nxh6 {[%clk 0:00:21.4]} 0-1

[Event "*** Titled Tuesday Blitz"]
[Site "Chess.com"]
[Date "2018.07.03"]
[Round "4"]
[White "ama18"]
[Black "AndrewDGreen"]
[Result "1-0"]
[WhiteElo "2280"]
[BlackElo "2177"]
[TimeControl "180+2"]
[EndTime "13:52:28 PDT"]
[Termination "ama18 won by resignation"]

1. e4 {[%clk 0:03:01.9]} 1... c5 {[%clk 0:02:59.7]} 2. Nf3 {[%clk 0:03:02.8]}
2... g6 {[%clk 0:03:01.2]} 3. d4 {[%clk 0:03:03.4]} 3... cxd4 {[%clk 0:03:03.1]}
4. Nxd4 {[%clk 0:03:05.3]} 4... Nc6 {[%clk 0:03:03.9]} 5. c4 {[%clk 0:03:06.2]}
5... Nf6 {[%clk 0:03:04.8]} 6. Nc3 {[%clk 0:03:06.1]} 6... Nxd4 {[%clk
0:03:06.1]} 7. Qxd4 {[%clk 0:03:06.9]} 7... d6 {[%clk 0:03:07.4]} 8. Be2 {[%clk
0:03:06.1]} 8... Bg7 {[%clk 0:03:08.7]} 9. Be3 {[%clk 0:03:06.7]} 9... O-O
{[%clk 0:03:09.8]} 10. Qd2 {[%clk 0:03:07.8]} 10... a5 {[%clk 0:03:10.1]} 11. f3
{[%clk 0:03:06.5]} 11... a4 {[%clk 0:03:11]} 12. O-O {[%clk 0:03:03.9]} 12...
Qa5 {[%clk 0:03:11]} 13. Rfd1 {[%clk 0:02:49.2]} 13... Be6 {[%clk 0:03:09]} 14.
Nd5 {[%clk 0:02:48.6]} 14... Qxd2 {[%clk 0:03:06.5]} 15. Nxe7+ {[%clk
0:02:46.8]} 15... Kh8 {[%clk 0:03:06.6]} 16. Rxd2 {[%clk 0:02:48.7]} 16... Rfe8
{[%clk 0:02:59.5]} 17. Nd5 {[%clk 0:02:48.9]} 17... a3 {[%clk 0:02:20.8]} 18.
Nc7 {[%clk 0:02:10.9]} 18... axb2 {[%clk 0:02:16]} 19. Rb1 {[%clk 0:02:08.5]}
19... Nd7 {[%clk 0:02:08.3]} 20. Nxe8 {[%clk 0:02:05]} 20... Rxe8 {[%clk
0:02:10.2]} 21. Bd4 {[%clk 0:02:06]} 21... Ne5 {[%clk 0:01:59.3]} 22. Rbxb2
{[%clk 0:02:01.6]} 22... Rc8 {[%clk 0:01:56.2]} 23. Rxb7 {[%clk 0:01:57.6]}
23... Nxc4 {[%clk 0:01:57.1]} 24. Bxg7+ {[%clk 0:01:56.9]} 24... Kxg7 {[%clk
0:01:57.1]} 25. Bxc4 {[%clk 0:01:58.8]} 25... Rxc4 {[%clk 0:01:56.3]} 26. Rxd6
{[%clk 0:02:00]} 26... Rc1+ {[%clk 0:01:54.3]} 27. Kf2 {[%clk 0:01:57.7]} 27...
Rc2+ {[%clk 0:01:55.4]} 28. Kg3 {[%clk 0:01:58.6]} 28... Bxa2 {[%clk 0:01:56.9]}
29. e5 {[%clk 0:01:57.4]} 29... Re2 {[%clk 0:01:54.9]} 30. Re7 {[%clk
0:01:49.2]} 30... Kf8 {[%clk 0:01:51]} 31. Ra7 {[%clk 0:01:45.8]} 31... h5
{[%clk 0:01:48.5]} 32. Rf6 {[%clk 0:01:36.4]} 32... Bc4 {[%clk 0:01:41.6]} 33.
Rc7 {[%clk 0:01:30.5]} 33... Bd5 {[%clk 0:01:38.5]} 34. Rc5 {[%clk 0:01:17.8]}
34... Rxe5 {[%clk 0:01:25.7]} 35. Kf4 {[%clk 0:01:12.1]} 35... Re6 {[%clk
0:01:05.8]} 36. Rxe6 {[%clk 0:01:07.9]} 36... Bxe6 {[%clk 0:01:07.7]} 37. Ke5
{[%clk 0:01:07.7]} 37... Kg7 {[%clk 0:01:06.3]} 38. Rc7 {[%clk 0:01:08.4]} 38...
Bf5 {[%clk 0:01:04.9]} 39. h3 {[%clk 0:01:04.5]} 39... Be6 {[%clk 0:01:04.6]}
40. g4 {[%clk 0:01:04.7]} 40... hxg4 {[%clk 0:01:05.6]} 41. hxg4 {[%clk
0:01:06.3]} 41... g5 {[%clk 0:00:58.1]} 42. Re7 {[%clk 0:00:48.4]} 42... Bc8
{[%clk 0:00:46.2]} 43. Re8 {[%clk 0:00:37.8]} 43... Bd7 {[%clk 0:00:45.2]} 44.
Re7 {[%clk 0:00:36.8]} 44... Bc8 {[%clk 0:00:46]} 45. Rc7 {[%clk 0:00:38]} 45...
Be6 {[%clk 0:00:46]} 46. Rc3 {[%clk 0:00:25]} 46... Bd7 {[%clk 0:00:41.3]} 47.
Rc4 {[%clk 0:00:17.4]} 47... Be6 {[%clk 0:00:41.1]} 48. Rc7 {[%clk 0:00:18.3]}
48... Bb3 {[%clk 0:00:06.5]} 49. Kf5 {[%clk 0:00:16.7]} 49... Bd1 {[%clk
0:00:06.8]} 50. Rc3 {[%clk 0:00:15]} 50... Be2 {[%clk 0:00:04.9]} 51. Kxg5
{[%clk 0:00:15.7]} 51... Bd1 {[%clk 0:00:05.8]} 52. f4 {[%clk 0:00:16.8]} 52...
Be2 {[%clk 0:00:06.7]} 53. f5 {[%clk 0:00:17.9]} 53... Bd1 {[%clk 0:00:05.9]}
54. f6+ {[%clk 0:00:18.9]} 54... Kh7 {[%clk 0:00:06.1]} 55. Rc7 {[%clk 0:00:19]}
55... Bb3 {[%clk 0:00:05.6]} 56. Kf4 {[%clk 0:00:19.9]} 56... Be6 {[%clk
0:00:06.3]} 57. g5 {[%clk 0:00:21]} 57... Kg6 {[%clk 0:00:07.2]} 58. Re7 {[%clk
0:00:22.2]} 58... Bg4 {[%clk 0:00:07.4]} 59. Kxg4 {[%clk 0:00:22.4]} 1-0

[Event "*** Titled Tuesday Blitz"]
[Site "Chess.com"]
[Date "2018.07.03"]
[Round "4"]
[White "SARGISMV"]
[Black "Orest_Vovk"]
[Result "1/2-1/2"]
[WhiteElo "2332"]
[BlackElo "2228"]
[TimeControl "180+2"]
[EndTime "13:52:28 PDT"]
[Termination "Game drawn - insufficient material"]

1. Nf3 {[%clk 0:02:27.8]} 1... h6 {[%clk 0:02:58.6]} 2. c4 {[%clk 0:02:28.5]}
2... g5 {[%clk 0:02:59.2]} 3. h4 {[%clk 0:02:23.2]} 3... g4 {[%clk 0:02:59.1]}
4. Nh2 {[%clk 0:02:24.1]} 4... g3 {[%clk 0:02:57.9]} 5. fxg3 {[%clk 0:02:24.4]}
5... Bg7 {[%clk 0:02:58.9]} 6. d4 {[%clk 0:02:19.4]} 6... c5 {[%clk 0:02:57.2]}
7. e3 {[%clk 0:02:13.4]} 7... Qc7 {[%clk 0:02:54.7]} 8. Qg4 {[%clk 0:02:07.3]}
8... Kf8 {[%clk 0:02:51.2]} 9. Qf4 {[%clk 0:02:03.8]} 9... Qxf4 {[%clk
0:02:42.9]} 10. gxf4 {[%clk 0:02:02.1]} 10... cxd4 {[%clk 0:02:43.8]} 11. exd4
{[%clk 0:01:59.2]} 11... Bxd4 {[%clk 0:02:43.6]} 12. Nf3 {[%clk 0:02:00.7]}
12... Nc6 {[%clk 0:02:40.1]} 13. Nxd4 {[%clk 0:01:51.9]} 13... Nxd4 {[%clk
0:02:42]} 14. Bd3 {[%clk 0:01:52.9]} 14... d6 {[%clk 0:02:37.5]} 15. Nc3 {[%clk
0:01:52.7]} 15... Nf6 {[%clk 0:02:35.6]} 16. Ne2 {[%clk 0:01:35]} 16... Bf5
{[%clk 0:02:25.5]} 17. Bxf5 {[%clk 0:01:28.1]} 17... Nxf5 {[%clk 0:02:24.7]} 18.
Bd2 {[%clk 0:01:28.8]} 18... Rg8 {[%clk 0:02:21.8]} 19. Rg1 {[%clk 0:01:23.8]}
19... Nxh4 {[%clk 0:02:18.2]} 20. Kf1 {[%clk 0:01:19]} 20... Ne4 {[%clk
0:02:12.2]} 21. Be1 {[%clk 0:01:12.6]} 21... Nf5 {[%clk 0:02:12.2]} 22. Bf2
{[%clk 0:01:07.1]} 22... Nd2+ {[%clk 0:02:01.7]} 23. Ke1 {[%clk 0:01:06.1]}
23... Nxc4 {[%clk 0:02:03.6]} 24. g4 {[%clk 0:01:03.3]} 24... Ng7 {[%clk
0:01:30.9]} 25. b3 {[%clk 0:01:02.3]} 25... Na5 {[%clk 0:01:25.4]} 26. f5 {[%clk
0:00:41.6]} 26... h5 {[%clk 0:01:19.3]} 27. f6 {[%clk 0:00:21]} 27... exf6
{[%clk 0:01:15]} 28. Rd1 {[%clk 0:00:17]} 28... Rd8 {[%clk 0:01:11.3]} 29. Bxa7
{[%clk 0:00:16.5]} 29... Nc6 {[%clk 0:01:04.4]} 30. Bb6 {[%clk 0:00:14.9]} 30...
Rd7 {[%clk 0:01:05.7]} 31. Nf4 {[%clk 0:00:15.8]} 31... hxg4 {[%clk 0:01:01.2]}
32. Rxg4 {[%clk 0:00:17.7]} 32... Ne6 {[%clk 0:00:57.8]} 33. Rxg8+ {[%clk
0:00:17.9]} 33... Kxg8 {[%clk 0:00:58]} 34. Nd5 {[%clk 0:00:19.8]} 34... Kg7
{[%clk 0:00:55.2]} 35. Kd2 {[%clk 0:00:20.9]} 35... Ne7 {[%clk 0:00:50.4]} 36.
Ne3 {[%clk 0:00:19.1]} 36... Ng5 {[%clk 0:00:46.9]} 37. Rg1 {[%clk 0:00:19.4]}
37... Kg6 {[%clk 0:00:39.9]} 38. Bd4 {[%clk 0:00:19.1]} 38... Nf5 {[%clk
0:00:31.4]} 39. Nxf5 {[%clk 0:00:18.4]} 39... Kxf5 {[%clk 0:00:33.3]} 40. Rf1+
{[%clk 0:00:19.7]} 40... Ke4 {[%clk 0:00:34.2]} 41. Bxf6 {[%clk 0:00:20.1]}
41... Nf3+ {[%clk 0:00:35.1]} 42. Kc3 {[%clk 0:00:20.3]} 42... Rc7+ {[%clk
0:00:31.2]} 43. Kb4 {[%clk 0:00:21.3]} 43... Ne5 {[%clk 0:00:29.6]} 44. a4
{[%clk 0:00:21]} 44... Nd3+ {[%clk 0:00:26.8]} 45. Kb5 {[%clk 0:00:22.1]} 45...
d5 {[%clk 0:00:26.3]} 46. Rh1 {[%clk 0:00:18.4]} 46... Kf5 {[%clk 0:00:22.3]}
47. Bh8 {[%clk 0:00:18]} 47... f6 {[%clk 0:00:18.3]} 48. Rf1+ {[%clk 0:00:17.7]}
48... Nf4 {[%clk 0:00:18.5]} 49. Bxf6 {[%clk 0:00:18.2]} 49... Kxf6 {[%clk
0:00:19.2]} 50. Rxf4+ {[%clk 0:00:19.1]} 50... Ke5 {[%clk 0:00:20.4]} 51. Rf8
{[%clk 0:00:20.6]} 51... d4 {[%clk 0:00:21]} 52. Re8+ {[%clk 0:00:21.4]} 52...
Kd5 {[%clk 0:00:20.4]} 53. Rd8+ {[%clk 0:00:22.5]} 53... Ke4 {[%clk 0:00:21.2]}
54. Kb6 {[%clk 0:00:22.1]} 54... Rg7 {[%clk 0:00:19.2]} 55. b4 {[%clk
0:00:21.7]} 55... d3 {[%clk 0:00:19.5]} 56. b5 {[%clk 0:00:22.9]} 56... Ke3
{[%clk 0:00:17.2]} 57. a5 {[%clk 0:00:24.1]} 57... d2 {[%clk 0:00:16.4]} 58. a6
{[%clk 0:00:25.3]} 58... bxa6 {[%clk 0:00:17.4]} 59. bxa6 {[%clk 0:00:26.5]}
59... Rg6+ {[%clk 0:00:18.1]} 60. Kb7 {[%clk 0:00:26.9]} 60... Rxa6 {[%clk
0:00:18.7]} 61. Kxa6 {[%clk 0:00:26.8]} 61... Ke2 {[%clk 0:00:20.6]} 62. Kb5
{[%clk 0:00:25.5]} 62... d1=Q {[%clk 0:00:21.3]} 63. Rxd1 {[%clk 0:00:26.7]}
63... Kxd1 {[%clk 0:00:23.2]} 1/2-1/2

[Event "*** Titled Tuesday Blitz"]
[Site "Chess.com"]
[Date "2018.07.03"]
[Round "4"]
[White "abhijeetgupta1016"]
[Black "dretch"]
[Result "0-1"]
[WhiteElo "2807"]
[BlackElo "2778"]
[TimeControl "180+2"]
[EndTime "13:52:52 PDT"]
[Termination "dretch won by resignation"]

1. d4 {[%clk 0:03:01.9]} 1... d5 {[%clk 0:03:00.8]} 2. c4 {[%clk 0:03:01.1]}
2... c6 {[%clk 0:03:01.6]} 3. Nc3 {[%clk 0:03:01.2]} 3... Nf6 {[%clk 0:02:58.6]}
4. Nf3 {[%clk 0:03:02.2]} 4... dxc4 {[%clk 0:02:58.6]} 5. a4 {[%clk 0:03:02.5]}
5... Bf5 {[%clk 0:02:58.2]} 6. Ne5 {[%clk 0:03:03.3]} 6... Nbd7 {[%clk
0:02:59.1]} 7. Nxc4 {[%clk 0:03:04.3]} 7... Nb6 {[%clk 0:03:00.4]} 8. Ne5 {[%clk
0:03:03.7]} 8... a5 {[%clk 0:03:00.1]} 9. e3 {[%clk 0:03:04.8]} 9... g6 {[%clk
0:02:59.3]} 10. Bd3 {[%clk 0:03:03.9]} 10... Bxd3 {[%clk 0:03:00.1]} 11. Nxd3
{[%clk 0:03:04.8]} 11... Bg7 {[%clk 0:03:00.2]} 12. O-O {[%clk 0:03:05.9]} 12...
O-O {[%clk 0:03:00.4]} 13. Qb3 {[%clk 0:03:03.6]} 13... Nfd7 {[%clk 0:02:59.3]}
14. Ne2 {[%clk 0:02:57.3]} 14... e5 {[%clk 0:03:00.2]} 15. Nxe5 {[%clk
0:02:48.3]} 15... Nxe5 {[%clk 0:03:02.1]} 16. dxe5 {[%clk 0:02:50]} 16... Bxe5
{[%clk 0:03:03.4]} 17. e4 {[%clk 0:02:51.6]} 17... Bc7 {[%clk 0:03:04.6]} 18. f4
{[%clk 0:02:39.3]} 18... Qe7 {[%clk 0:03:01.9]} 19. Ng3 {[%clk 0:02:34.7]} 19...
Qb4 {[%clk 0:02:31.9]} 20. Qc2 {[%clk 0:02:18.2]} 20... Rad8 {[%clk 0:02:20.4]}
21. Kh1 {[%clk 0:01:59.7]} 21... Qc4 {[%clk 0:02:15.8]} 22. Qf2 {[%clk
0:01:32.5]} 22... Nxa4 {[%clk 0:02:09.2]} 23. Be3 {[%clk 0:01:33.6]} 23... Rd3
{[%clk 0:01:54.8]} 24. e5 {[%clk 0:01:15.1]} 24... Rb3 {[%clk 0:01:39.6]} 25.
Bd4 {[%clk 0:00:50.7]} 25... Rd8 {[%clk 0:01:33.2]} 26. Rad1 {[%clk 0:00:44.3]}
26... c5 {[%clk 0:01:16.5]} 27. Ne4 {[%clk 0:00:19.9]} 27... Rxd4 {[%clk
0:01:02.1]} 28. Nf6+ {[%clk 0:00:20.4]} 28... Kf8 {[%clk 0:00:50.2]} 29. Qh4
{[%clk 0:00:21.4]} 29... Rxd1 {[%clk 0:00:15.1]} 30. Rxd1 {[%clk 0:00:22.2]}
30... Rd3 {[%clk 0:00:16.3]} 31. Nxh7+ {[%clk 0:00:23.1]} 31... Ke8 {[%clk
0:00:16.3]} 32. Nf6+ {[%clk 0:00:24.4]} 32... Ke7 {[%clk 0:00:14.7]} 33. Nd5+
{[%clk 0:00:21.4]} 33... Ke6 {[%clk 0:00:10.5]} 34. Nxc7+ {[%clk 0:00:20.4]}
34... Kd7 {[%clk 0:00:11.2]} 35. e6+ {[%clk 0:00:19.1]} 35... fxe6 {[%clk
0:00:08.3]} 36. Qh7+ {[%clk 0:00:19.8]} 36... Kc6 {[%clk 0:00:09.4]} 37. Rg1
{[%clk 0:00:20.8]} 37... Rd7 {[%clk 0:00:09]} 38. Qxg6 {[%clk 0:00:20.7]} 38...
Rxc7 {[%clk 0:00:10.4]} 39. f5 {[%clk 0:00:21.8]} 39... Qd5 {[%clk 0:00:10]} 40.
f6 {[%clk 0:00:23.1]} 40... Qf5 {[%clk 0:00:11.3]} 41. Qh6 {[%clk 0:00:23.4]}
41... Nb6 {[%clk 0:00:10.1]} 42. h3 {[%clk 0:00:24.5]} 42... Nd5 {[%clk
0:00:10.9]} 43. Re1 {[%clk 0:00:24.8]} 43... Rd7 {[%clk 0:00:09.8]} 44. f7
{[%clk 0:00:25.1]} 44... Qxf7 {[%clk 0:00:09]} 45. Rxe6+ {[%clk 0:00:26.2]}
45... Kc7 {[%clk 0:00:10]} 46. Re1 {[%clk 0:00:23.9]} 46... Re7 {[%clk
0:00:09.4]} 47. Rc1 {[%clk 0:00:24.5]} 47... b6 {[%clk 0:00:10.2]} 48. Rd1
{[%clk 0:00:18.1]} 48... Rd7 {[%clk 0:00:08.5]} 49. Qg5 {[%clk 0:00:18.1]} 49...
Qe6 {[%clk 0:00:09]} 50. Qg3+ {[%clk 0:00:16.6]} 50... Kb7 {[%clk 0:00:09.6]}
51. Qf3 {[%clk 0:00:17.9]} 51... Qc6 {[%clk 0:00:10]} 52. Qf5 {[%clk 0:00:17.4]}
52... b5 {[%clk 0:00:10.6]} 53. h4 {[%clk 0:00:18.3]} 53... Nb6 {[%clk
0:00:10.5]} 54. Rc1 {[%clk 0:00:18.6]} 54... c4 {[%clk 0:00:10.9]} 55. h5 {[%clk
0:00:19.3]} 55... a4 {[%clk 0:00:12.1]} 56. Qf4 {[%clk 0:00:18.8]} 56... Qd5
{[%clk 0:00:12.4]} 57. Qh4 {[%clk 0:00:18.9]} 57... Rg7 {[%clk 0:00:12.5]} 58.
Qh3 {[%clk 0:00:13.8]} 58... Rh7 {[%clk 0:00:12.3]} 59. Kg1 {[%clk 0:00:10.6]}
59... Qc5+ {[%clk 0:00:11.6]} 60. Kf1 {[%clk 0:00:10.5]} 60... Rxh5 {[%clk
0:00:11.8]} 61. Qf3+ {[%clk 0:00:10.7]} 61... Ka6 {[%clk 0:00:12.6]} 0-1

[Event "*** Titled Tuesday Blitz"]
[Site "Chess.com"]
[Date "2018.07.03"]
[Round "4"]
[White "catalin009"]
[Black "djano"]
[Result "1/2-1/2"]
[WhiteElo "2431"]
[BlackElo "2416"]
[TimeControl "180+2"]
[EndTime "13:53:11 PDT"]
[Termination "Game drawn by repetition"]

1. e4 {[%clk 0:03:01.9]} 1... c5 {[%clk 0:02:59.5]} 2. Nf3 {[%clk 0:03:02.9]}
2... d6 {[%clk 0:02:59.8]} 3. Bb5+ {[%clk 0:03:04]} 3... Nd7 {[%clk 0:02:59.7]}
4. O-O {[%clk 0:03:03.5]} 4... g6 {[%clk 0:02:59.7]} 5. Re1 {[%clk 0:03:04.1]}
5... Bg7 {[%clk 0:03:00.7]} 6. c3 {[%clk 0:03:05.3]} 6... Nf6 {[%clk 0:02:55.9]}
7. d4 {[%clk 0:03:04.2]} 7... cxd4 {[%clk 0:02:56.4]} 8. cxd4 {[%clk 0:03:04.3]}
8... a6 {[%clk 0:02:55.3]} 9. Bf1 {[%clk 0:03:01.9]} 9... O-O {[%clk 0:02:52.9]}
10. Nc3 {[%clk 0:02:54.2]} 10... e5 {[%clk 0:02:52.8]} 11. dxe5 {[%clk
0:02:25.6]} 11... Nxe5 {[%clk 0:02:49.2]} 12. Nxe5 {[%clk 0:01:57.2]} 12... dxe5
{[%clk 0:02:51.1]} 13. Be3 {[%clk 0:01:51.8]} 13... Be6 {[%clk 0:02:46.8]} 14.
Rc1 {[%clk 0:01:43]} 14... Rc8 {[%clk 0:02:41.7]} 15. Qa4 {[%clk 0:01:39]} 15...
Qd7 {[%clk 0:02:34.4]} 16. Qxd7 {[%clk 0:01:14.7]} 16... Nxd7 {[%clk 0:02:31]}
17. a3 {[%clk 0:01:08]} 17... f5 {[%clk 0:02:23.8]} 18. exf5 {[%clk 0:01:02.7]}
18... gxf5 {[%clk 0:02:23.3]} 19. f4 {[%clk 0:01:03.9]} 19... e4 {[%clk
0:02:15.5]} 20. Red1 {[%clk 0:01:03.7]} 20... Kf7 {[%clk 0:02:01.2]} 21. Rd6
{[%clk 0:00:49.9]} 21... Ke7 {[%clk 0:01:53.9]} 22. Rcd1 {[%clk 0:00:50.6]}
22... Bxc3 {[%clk 0:01:47.8]} 23. bxc3 {[%clk 0:00:49]} 23... Rxc3 {[%clk
0:01:48.6]} 24. Bf2 {[%clk 0:00:29.3]} 24... Nc5 {[%clk 0:01:13.5]} 25. Be1
{[%clk 0:00:12.4]} 25... Rc2 {[%clk 0:01:07.5]} 26. Bb4 {[%clk 0:00:06.7]} 26...
Rc8 {[%clk 0:01:04]} 27. Rb6 {[%clk 0:00:06.3]} 27... Rc7 {[%clk 0:00:55.9]} 28.
h3 {[%clk 0:00:04]} 28... e3 {[%clk 0:00:45.6]} 29. Rdd6 {[%clk 0:00:04.3]}
29... Bf7 {[%clk 0:00:29.2]} 30. Rd1 {[%clk 0:00:03.4]} 30... Ke8 {[%clk
0:00:19.7]} 31. Re1 {[%clk 0:00:04.2]} 31... Re7 {[%clk 0:00:20.1]} 32. Be2
{[%clk 0:00:04.7]} 32... Re6 {[%clk 0:00:19]} 33. Bxc5 {[%clk 0:00:02.8]} 33...
Rxc5 {[%clk 0:00:20.5]} 34. Rxb7 {[%clk 0:00:04.3]} 34... Re4 {[%clk 0:00:19.4]}
35. Bf3 {[%clk 0:00:04.8]} 35... Rxf4 {[%clk 0:00:19.5]} 36. Rxe3+ {[%clk
0:00:05.4]} 36... Kf8 {[%clk 0:00:20.9]} 37. Ree7 {[%clk 0:00:07]} 37... Bd5
{[%clk 0:00:19.5]} 38. Bxd5 {[%clk 0:00:06.6]} 38... Rxd5 {[%clk 0:00:21.4]} 39.
Rf7+ {[%clk 0:00:07.8]} 39... Kg8 {[%clk 0:00:22.6]} 40. Rg7+ {[%clk 0:00:09.1]}
40... Kh8 {[%clk 0:00:22.6]} 41. Rge7 {[%clk 0:00:09.1]} 41... Rd8 {[%clk
0:00:21.9]} 42. Rxh7+ {[%clk 0:00:09.6]} 42... Kg8 {[%clk 0:00:23.3]} 43. Rhg7+
{[%clk 0:00:10.5]} 43... Kh8 {[%clk 0:00:24.5]} 44. Rge7 {[%clk 0:00:10.5]}
44... Ra4 {[%clk 0:00:21.2]} 45. Rh7+ {[%clk 0:00:09.1]} 45... Kg8 {[%clk
0:00:21.7]} 46. h4 {[%clk 0:00:09.3]} 46... Rxa3 {[%clk 0:00:21.2]} 47. h5
{[%clk 0:00:10.6]} 47... Rg3 {[%clk 0:00:22]} 48. Kf2 {[%clk 0:00:10.2]} 48...
f4 {[%clk 0:00:23.1]} 49. h6 {[%clk 0:00:05.9]} 49... Rd2+ {[%clk 0:00:23.5]}
50. Kf1 {[%clk 0:00:04]} 50... Rdxg2 {[%clk 0:00:22.4]} 51. Rhc7 {[%clk
0:00:03.5]} 51... Rg1+ {[%clk 0:00:22.7]} 52. Ke2 {[%clk 0:00:04.7]} 52... R1g2+
{[%clk 0:00:23.5]} 53. Kf1 {[%clk 0:00:05.3]} 53... Rg1+ {[%clk 0:00:24]} 54.
Kf2 {[%clk 0:00:06.6]} 54... R1g2+ {[%clk 0:00:24.1]} 55. Ke1 {[%clk 0:00:07.6]}
55... Rg1+ {[%clk 0:00:18.9]} 56. Kf2 {[%clk 0:00:05.2]} 56... R1g2+ {[%clk
0:00:19.4]} 57. Kf1 {[%clk 0:00:05.6]} 57... Kh8 {[%clk 0:00:20.1]} 58. Ra7
{[%clk 0:00:04.5]} 58... Rg1+ {[%clk 0:00:19.3]} 59. Kf2 {[%clk 0:00:05.1]}
59... R1g2+ {[%clk 0:00:20.1]} 60. Kf1 {[%clk 0:00:06.1]} 60... f3 {[%clk
0:00:18.5]} 61. h7 {[%clk 0:00:04.1]} 61... Rg1+ {[%clk 0:00:17.7]} 62. Kf2
{[%clk 0:00:05.4]} 62... R1g2+ {[%clk 0:00:18.3]} 63. Kf1 {[%clk 0:00:06.7]}
63... Rg1+ {[%clk 0:00:16.6]} 64. Kf2 {[%clk 0:00:07.8]} 64... R1g2+ {[%clk
0:00:17.4]} 65. Kf1 {[%clk 0:00:07]} 65... Rg1+ {[%clk 0:00:17.5]} 66. Kf2
{[%clk 0:00:07.9]} 66... R1g2+ {[%clk 0:00:17]} 67. Kf1 {[%clk 0:00:08.4]} 67...
Rg1+ {[%clk 0:00:17.2]} 68. Kf2 {[%clk 0:00:09.2]} 1/2-1/2